bitfinex/quotes_BTCUSD_20251201
["timestamp","ask_amount","ask_price","bid_price","bid_amount"]
[1764549614923,0.40089519,87937.0,87934.0,0.01137216]
[1764549615122,0.40089519,87937.0,87932.0,0.01137242]
[1764549615342,0.41226696,87937.0,87930.0,0.00011875]
[1764549615543,0.39,87937.0,87930.0,0.00011875]
[1764549615747,0.01137203,87935.0,87930.0,0.00011875]
[1764549615961,0.01089519,87934.0,87930.0,0.01149143]
[1764549616259,0.01089519,87932.0,87931.0,0.01137255]
[1764549616468,0.01089519,87932.0,87930.0,0.00011875]
[1764549616469,0.35,87932.0,87930.0,0.00011875]
[1764549617023,0.22745106,87931.0,87930.0,0.00011875]
[1764549617362,0.39,87931.0,87930.0,0.00011875]
[1764549618262,0.40089519,87931.0,87930.0,0.00011875]
[1764549618469,0.49830519,87931.0,87930.0,0.00011875]
[1764549621315,0.55058,87931.0,87930.0,0.00011875]
[1764549621486,0.39,87931.0,87930.0,0.00011875]
[1764549625777,0.40089519,87931.0,87930.0,0.00011875]
[1764549625898,0.54493,87931.0,87930.0,0.00011875]
[1764549626103,0.55582519,87931.0,87930.0,0.00011875]
[1764549627644,0.46187519,87931.0,87930.0,0.00011875]
[1764549627843,0.55582519,87931.0,87930.0,0.00011875]
[1764549628443,0.55582519,87931.0,87901.0,0.10120376]
[1764549628444,0.01137527,87910.0,87898.0,0.01137682]
[1764549628637,0.01137591,87905.0,87901.0,0.10120376]
[1764549628857,0.23889793,87904.0,87900.0,0.71127199]
[1764549629035,0.40028604,87904.0,87900.0,0.71127199]
[1764549629436,0.34,87904.0,87903.0,0.22752352]
[1764549630737,0.342,87904.0,87903.0,0.22752352]
[1764549631376,0.342,87904.0,87898.0,0.00011888]
[1764549631377,0.01137617,87903.0,87898.0,0.00011888]
[1764549631689,0.24980031,87901.0,87898.0,0.00011888]
[1764549631845,0.36137643,87901.0,87898.0,0.00011888]
[1764549632366,0.22753128,87900.0,87898.0,0.00011888]
[1764549632578,0.57753128,87900.0,87898.0,0.00011888]
[1764549632773,0.06098,87899.0,87898.0,0.00011888]
[1764549633097,0.56493,87899.0,87898.0,0.00011888]
[1764549633325,0.57582519,87899.0,87898.0,0.00011888]
[1764549633517,0.56493,87899.0,87898.0,0.00011888]
[1764549633742,0.57582519,87899.0,87898.0,0.00011888]
[1764549634277,0.57882519,87899.0,87898.0,0.00011888]
[1764549637114,0.01138122,87864.0,87860.0,0.01138174]
[1764549637319,0.2276271,87863.0,87854.0,0.93892222]
[1764549637564,0.01138174,87860.0,87858.0,0.10120376]
[1764549637695,0.01138226,87856.0,87850.0,0.01138303]
[1764549637886,0.01138265,87853.0,87850.0,0.71127199]
[1764549638093,0.01138265,87853.0,87848.0,0.22791285]
[1764549638094,0.22766337,87849.0,87848.0,0.00024847]
[1764549638303,0.39,87849.0,87848.0,0.00024847]
[1764549638605,0.55582519,87849.0,87848.0,0.00024847]
[1764549638824,0.55582519,87849.0,87830.0,0.56754342]
[1764549638825,0.22771003,87831.0,87830.0,0.0004]
[1764549639016,0.74717522,87831.0,87830.0,0.0004]
[1764549639255,0.83023003,87831.0,87830.0,0.0004]
[1764549639469,0.84112522,87831.0,87830.0,0.0004]
[1764549639778,0.44759,87831.0,87830.0,0.0004]
[1764549639982,0.44759,87831.0,87830.0,0.00079614]
[1764549640132,0.61341519,87831.0,87830.0,0.00079614]
[1764549640531,0.60352,87831.0,87830.0,0.00079614]
[1764549640749,0.61341519,87831.0,87830.0,0.00079614]
[1764549641090,0.411,87831.0,87830.0,0.00079614]
[1764549641231,0.411,87831.0,87830.0,0.1019999]
[1764549641437,0.41,87831.0,87830.0,0.1029799]
[1764549642131,0.011382,87858.0,87830.0,0.1029799]
[1764549642132,0.04891,87890.0,87886.0,0.01137837]
[1764549642337,0.01137863,87884.0,87872.0,0.01138018]
[1764549642542,0.01137863,87884.0,87851.0,0.10120376]
[1764549642543,0.01089519,87878.0,87870.0,0.57852386]
[1764549642743,0.01089519,87876.0,87873.0,0.01138005]
[1764549642981,0.01138044,87870.0,87865.0,0.01138109]
[1764549643178,0.37,87870.0,87866.0,0.01138096]
[1764549643381,0.37011855,87870.0,87868.0,0.22761285]
[1764549643579,0.37011855,87870.0,87869.0,0.10120376]
[1764549643814,0.37011855,87870.0,87868.0,0.22761285]
[1764549644099,0.37011855,87870.0,87869.0,0.10120376]
[1764549645629,0.00011855,87870.0,87869.0,0.48672675]
[1764549645827,0.02843494,87920.0,87913.0,0.01137488]
[1764549646039,0.02843494,87920.0,87910.0,0.56714342]
[1764549646040,0.22748987,87916.0,87910.0,0.56714342]
[1764549646213,0.01089519,87913.0,87910.0,0.56714342]
[1764549646407,0.42089519,87913.0,87910.0,0.23887893]
[1764549646610,0.02843752,87912.0,87910.0,0.22750366]
[1764549646809,0.43981253,87912.0,87906.0,0.23889009]
[1764549647066,0.63887543,87912.0,87906.0,0.22751431]
[1764549647225,0.01137527,87910.0,87906.0,0.22751431]
[1764549647421,0.01137527,87910.0,87903.0,0.56714342]
[1764549647422,0.01113106,87909.0,87903.0,0.56714342]
[1764549647720,0.35,87909.0,87906.0,0.23889035]
[1764549649149,0.35,87909.0,87908.0,0.22751057]
[1764549650319,0.35,87909.0,87908.0,0.22851057]
[1764549651012,0.35,87909.0,87908.0,0.23939894]
[1764549651218,0.35,87909.0,87908.0,0.56239894]
[1764549651617,0.35,87909.0,87908.0,1.02492193]
[1764549652378,0.35,87909.0,87908.0,1.02392193]
[1764549652736,0.352,87909.0,87908.0,1.02392193]
[1764549652980,0.35,87909.0,87908.0,1.02392193]
[1764549653190,0.35,87909.0,87908.0,1.01303356]
[1764549653394,0.35,87909.0,87908.0,1.01603356]
[1764549653737,0.35,87909.0,87908.0,0.323]
[1764549654173,0.35,87909.0,87908.0,0.33688837]
[1764549654386,0.35,87909.0,87908.0,0.33388837]
[1764549654757,0.00011879,87920.0,87908.0,0.33388837]
[1764549654758,0.00011879,87920.0,87919.0,0.62389347]
[1764549654962,0.37011879,87920.0,87919.0,0.63129347]
[1764549655488,0.37011879,87920.0,87919.0,1.03129347]
[1764549655920,0.37011879,87920.0,87919.0,0.95788211]
[1764549656231,0.37011879,87920.0,87919.0,0.56388211]
[1764549656551,0.37011879,87920.0,87919.0,0.6204051]
[1764549656757,0.34011879,87920.0,87919.0,0.63629347]
[1764549657064,0.00308462,87932.0,87919.0,0.63629347]
[1764549657065,0.00308462,87932.0,87931.0,0.55045106]
[1764549657292,0.36308462,87932.0,87931.0,0.55045106]
[1764549657908,0.36308462,87932.0,87931.0,0.22745106]
[1764549658053,0.36308462,87932.0,87927.0,0.22746103]
[1764549658255,0.36308462,87932.0,87931.0,0.22745106]
[1764549658457,0.36308462,87932.0,87929.0,0.23882786]
[1764549658895,0.36308462,87932.0,87929.0,0.23882872]
[1764549659299,0.01137268,87930.0,87922.0,0.10120376]
[1764549659496,0.01137332,87925.0,87922.0,0.56714342]
[1764549659732,0.01137332,87925.0,87918.0,0.10120376]
[1764549659733,0.38,87925.0,87923.0,0.01137358]
[1764549659932,0.39137332,87925.0,87921.0,0.01137384]
[1764549660140,0.38,87925.0,87922.0,0.01137371]
[1764549660320,0.38,87925.0,87922.0,0.23884627]
[1764549660548,0.38,87925.0,87924.0,0.22746917]
[1764549660924,0.38,87925.0,87924.0,0.23835754]
[1764549661130,0.38,87925.0,87919.0,0.23884648]
[1764549661131,0.38,87925.0,87918.0,0.10120376]
[1764549661333,0.38,87925.0,87894.0,0.45509057]
[1764549661334,0.23884262,87924.0,87915.0,0.56714342]
[1764549661534,0.23884262,87924.0,87915.0,0.56726221]
[1764549661535,0.01137397,87920.0,87915.0,0.56726221]
[1764549661748,0.63885366,87920.0,87915.0,0.56726221]
[1764549661957,0.01137423,87918.0,87915.0,0.56726221]
[1764549662165,0.37,87918.0,87917.0,0.22748728]
[1764549662738,0.37,87918.0,87915.0,0.01149341]
[1764549662943,0.37,87918.0,87916.0,0.22748987]
[1764549663409,0.37,87918.0,87915.0,0.00011879]
[1764549663410,0.38109728,87917.0,87915.0,0.00011879]
[1764549663619,0.37,87917.0,87915.0,0.00011879]
[1764549663849,0.37,87917.0,87915.0,0.22761107]
[1764549664874,0.59748789,87917.0,87915.0,0.00011879]
[1764549665078,0.15361,87916.0,87915.0,0.00011879]
[1764549665258,0.50450519,87916.0,87915.0,0.00011879]
[1764549665776,0.50450519,87916.0,87915.0,0.00063879]
[1764549665777,0.49361,87916.0,87915.0,0.00063879]
[1764549665981,0.50450519,87916.0,87890.0,0.56714342]
[1764549666191,0.50450519,87916.0,87880.0,0.56714342]
[1764549666192,0.01137837,87886.0,87880.0,0.56714342]
[1764549666422,0.01137837,87886.0,87885.0,0.22757012]
[1764549666423,0.33,87886.0,87885.0,0.22757012]
[1764549666653,0.33,87886.0,87885.0,0.0006]
[1764549666872,0.33,87886.0,87885.0,0.3236]
[1764549667090,0.33,87886.0,87885.0,0.3242]
[1764549667292,0.33,87886.0,87885.0,0.3236]
[1764549668453,0.33,87886.0,87884.0,0.2275727]
[1764549668693,0.33,87886.0,87885.0,0.0046]
[1764549668925,0.33,87886.0,87885.0,0.0006]
[1764549669134,0.33,87886.0,87884.0,0.2275727]
[1764549669361,0.33,87886.0,87885.0,0.0042]
[1764549669575,0.08479864,87951.0,87929.0,0.01137281]
[1764549669576,0.05795048,87947.0,87929.0,0.01137281]
[1764549669788,0.3832033,87932.0,87931.0,0.10120376]
[1764549670003,0.3832033,87932.0,87926.0,0.0113732]
[1764549670204,0.3832033,87932.0,87920.0,0.56714342]
[1764549670205,0.0113732,87926.0,87920.0,0.56714342]
[1764549670330,0.01137358,87923.0,87920.0,0.56714342]
[1764549670521,0.01137397,87920.0,87913.0,0.56714342]
[1764549670721,0.37137397,87920.0,87916.0,0.10120376]
[1764549670960,0.36,87920.0,87917.0,0.23886164]
[1764549671161,0.36,87920.0,87917.0,0.01137436]
[1764549671572,0.36,87920.0,87918.0,0.2274847]
[1764549671771,0.361,87920.0,87917.0,0.01137436]
[1764549672018,0.36,87920.0,87917.0,0.01137436]
[1764549672356,0.361,87920.0,87918.0,0.2274847]
[1764549672879,0.361,87920.0,87919.0,0.38552299]
[1764549672880,0.331,87920.0,87919.0,0.38552299]
[1764549673211,0.331,87920.0,87919.0,0.38662218]
[1764549673212,0.341,87920.0,87919.0,0.38662218]
[1764549673363,0.0032033,87932.0,87919.0,0.38662218]
[1764549673364,0.0032033,87932.0,87931.0,0.62386242]
[1764549673572,0.2032033,87932.0,87931.0,5.62386242]
[1764549673921,0.0002,87990.0,87987.0,0.01136531]
[1764549674120,0.34059599,87990.0,87987.0,0.01136531]
[1764549674273,0.34059599,87990.0,87988.0,0.22730372]
[1764549674534,0.33059599,87990.0,87989.0,0.06252299]
[1764549674680,0.00059599,87990.0,87989.0,0.39641136]
[1764549674884,0.35059599,87990.0,87989.0,0.38552299]
[1764549675103,0.0002,88020.0,87999.0,0.61279829]
[1764549675334,0.40031874,88000.0,87999.0,0.62368666]
[1764549675502,0.0002,88020.0,88019.0,0.61274665]
[1764549675860,0.0002,88020.0,88019.0,0.63103502]
[1764549676033,0.0002,88030.0,88019.0,0.63103502]
[1764549676034,0.0002,88030.0,88029.0,0.61272084]
[1764549676243,0.00031863,88030.0,88029.0,4.73692521]
[1764549676444,0.00031863,88030.0,88029.0,4.97289221]
[1764549676601,0.00031863,88030.0,88029.0,5.62360921]
[1764549676800,0.01031863,88030.0,88029.0,0.81637521]
[1764549677026,0.39031863,88030.0,88029.0,0.95208284]
[1764549677228,0.39031863,88030.0,88029.0,0.61272084]
[1764549677426,0.39031863,88030.0,88021.0,0.01136092]
[1764549677589,0.39031863,88030.0,88020.0,0.63504761]
[1764549677590,0.39031863,88030.0,88027.0,0.23856316]
[1764549677797,0.39031863,88030.0,88029.0,0.82460784]
[1764549678121,0.39031863,88030.0,88026.0,0.01136027]
[1764549678294,0.39031863,88030.0,88023.0,0.01136066]
[1764549678497,0.39031863,88030.0,88021.0,0.5502181]
[1764549678498,0.39031863,88030.0,88027.0,0.23856075]
[1764549678897,0.39031863,88030.0,88029.0,0.10520376]
[1764549679104,0.39031863,88030.0,88029.0,0.10120376]
[1764549680206,0.39031863,88030.0,88029.0,0.09620376]
[1764549680561,0.39335454,88030.0,88029.0,0.09620376]
[1764549682090,0.38335454,88030.0,88029.0,0.49261512]
[1764549682442,0.31335454,88030.0,88029.0,0.48372675]
[1764549683092,0.31335454,88030.0,88029.0,0.32540161]
[1764549683308,0.31335454,88030.0,88029.0,0.65728998]
[1764549683696,0.31335454,88030.0,88029.0,0.72581297]
[1764549684351,0.31335454,88030.0,88029.0,0.72481297]
[1764549684601,0.31335454,88030.0,88029.0,0.7139246]
[1764549684814,0.31335454,88030.0,88029.0,0.71981297]
[1764549685238,0.31335454,88030.0,88029.0,0.7119246]
[1764549685649,0.31335454,88030.0,88029.0,0.7129246]
[1764549685886,0.31335454,88030.0,88029.0,0.48272675]
[1764549686112,0.31335454,88030.0,88029.0,0.001]
[1764549686318,0.31335454,88030.0,88029.0,0.005]
[1764549686788,0.00335454,88030.0,88029.0,0.40341136]
[1764549686978,0.37335454,88030.0,88029.0,1.30732136]
[1764549687106,0.36335454,88030.0,88029.0,5.40341136]
[1764549687298,0.36335454,88030.0,88029.0,0.40341136]
[1764549687503,0.36335454,88030.0,88029.0,2.90979899]
[1764549687707,0.22704154,88090.0,88074.0,0.2384348]
[1764549687904,0.01019999,88110.0,88077.0,0.10120376]
[1764549687905,0.02838199,88084.0,88077.0,0.10120376]
[1764549688109,0.39,88084.0,88069.0,0.01135473]
[1764549688442,0.01135357,88078.0,88070.0,0.10120376]
[1764549688609,0.23843807,88074.0,88070.0,0.10120376]
[1764549688812,0.23843807,88074.0,88057.0,0.22712406]
[1764549688813,0.01135473,88069.0,88063.0,0.10120376]
[1764549689052,0.01135512,88066.0,88064.0,0.10120376]
[1764549689265,0.35,88066.0,88064.0,0.10120376]
[1764549689560,0.35,88066.0,88065.0,0.55010497]
[1764549690406,0.35,88066.0,88065.0,0.323]
[1764549691620,0.35,88066.0,88065.0,0.33388837]
[1764549691777,0.352,88066.0,88065.0,0.38662218]
[1764549693689,0.35,88066.0,88065.0,0.3344]
[1764549694120,0.15,88066.0,88065.0,0.3334]
[1764549694455,0.36,88066.0,88065.0,0.34575524]
[1764549694645,0.36,88066.0,88065.0,0.3344]
[1764549695198,0.36,88066.0,88065.0,0.3314]
[1764549695421,0.36,88066.0,88065.0,0.001]
[1764549695619,0.36,88066.0,88065.0,0.003]
[1764549696147,0.36,88066.0,88065.0,0.004]
[1764549696357,0.36,88066.0,88065.0,0.001]
[1764549696519,0.36,88066.0,88020.0,0.00999999]
[1764549696520,0.01135524,88065.0,88056.0,0.56415341]
[1764549696698,0.01135589,88060.0,88056.0,0.56415341]
[1764549696899,0.36,88060.0,88057.0,0.01135628]
[1764549697103,0.36,88060.0,88057.0,0.23848185]
[1764549697952,0.01135202,88090.0,88082.0,0.01135305]
[1764549698250,0.0002,88110.0,88082.0,0.01135305]
[1764549698251,0.3803956,88085.0,88084.0,0.10120376]
[1764549700943,0.3803956,88085.0,88084.0,0.32825975]
[1764549701350,0.3803956,88085.0,88084.0,1.52418711]
[1764549701351,0.3203956,88085.0,88084.0,1.52418711]
[1764549701566,0.4103956,88085.0,88084.0,1.89613511]
[1764549701898,0.4003956,88085.0,88084.0,1.05861975]
[1764549702246,0.4003956,88085.0,88084.0,1.13303111]
[1764549702460,0.0002,88110.0,88109.0,0.28951455]
[1764549702664,0.38031865,88110.0,88109.0,0.61987455]
[1764549702862,0.38031865,88110.0,88109.0,0.56823993]
[1764549703103,0.38031865,88110.0,88109.0,1.03076292]
[1764549703104,0.27031865,88110.0,88109.0,1.03076292]
[1764549703345,0.41031865,88110.0,88109.0,1.01987455]
[1764549703602,0.41279331,88110.0,88109.0,1.03076292]
[1764549703814,0.0002,88140.0,88119.0,0.61248879]
[1764549704025,0.0002,88140.0,88119.0,0.62337716]
[1764549704233,0.3702,88120.0,88119.0,2.37225716]
[1764549704433,0.3702,88120.0,88119.0,1.61057579]
[1764549704638,0.3202,88120.0,88119.0,1.53200516]
[1764549704920,0.3202,88120.0,88119.0,2.29279679]
[1764549705151,0.0002,88140.0,88139.0,0.54945671]
[1764549705369,0.38031852,88140.0,88139.0,0.57232064]
[1764549705572,0.36031852,88140.0,88139.0,0.57232064]
[1764549705796,0.36031852,88140.0,88139.0,0.56143227]
[1764549706230,0.36031852,88140.0,88139.0,0.57232064]
[1764549706635,0.36031852,88140.0,88139.0,0.56143227]
[1764549707095,0.36031852,88140.0,88139.0,0.57332064]
[1764549707329,1e-08,88150.0,88149.0,5.62329992]
[1764549707532,1e-08,88150.0,88149.0,0.86555055]
[1764549707758,0.37000001,88150.0,88149.0,0.63065992]
[1764549707932,0.37000001,88150.0,88149.0,0.98116592]
[1764549708140,0.37000001,88150.0,88149.0,1.65594692]
[1764549708490,0.00200001,88150.0,88149.0,4.97669592]
[1764549708694,0.00200001,88150.0,88149.0,1.03065992]
[1764549708900,1e-08,88150.0,88149.0,6.03065992]
[1764549709057,1e-08,88150.0,88149.0,6.01977155]
[1764549709268,1e-08,88150.0,88149.0,5.88076192]
[1764549709584,0.0002,88160.0,88159.0,5.05782818]
[1764549709785,0.0002,88160.0,88159.0,4.88793818]
[1764549710014,0.0002,88160.0,88159.0,5.62327418]
[1764549710209,0.0002,88200.0,88191.0,0.01133902]
[1764549710404,0.38152852,88194.0,88193.0,0.71350211]
[1764549710787,0.38152852,88194.0,88193.0,2.96812111]
[1764549710788,0.01152852,88194.0,88193.0,2.96812111]
[1764549710996,0.01152852,88194.0,88193.0,3.01042211]
[1764549711248,1e-08,88194.0,88193.0,3.31055111]
[1764549711558,0.0002,88270.0,88209.0,0.85388859]
[1764549711559,0.01133221,88244.0,88209.0,0.85388859]
[1764549711730,0.35059489,88210.0,88209.0,0.323]
[1764549712462,0.35059489,88210.0,88208.0,0.05]
[1764549712666,0.01133748,88203.0,88190.0,0.01133915]
[1764549712878,0.01133799,88199.0,88190.0,0.70901426]
[1764549713100,0.39,88199.0,88191.0,0.10120376]
[1764549713427,0.39,88199.0,88196.0,0.01133838]
[1764549713631,0.39,88199.0,88192.0,0.01133889]
[1764549713864,0.39,88199.0,88194.0,0.01133863]
[1764549714066,0.40133799,88199.0,88194.0,0.01133863]
[1764549714384,0.01133825,88197.0,88191.0,0.32798232]
[1764549714603,0.01133915,88190.0,88188.0,0.323]
[1764549714803,0.40133915,88190.0,88187.0,0.70901426]
[1764549714988,0.40133915,88190.0,88176.0,0.01134095]
[1764549714989,0.39,88190.0,88189.0,0.10120376]
[1764549715770,0.391,88190.0,88189.0,0.10120376]
[1764549716956,0.39,88190.0,88189.0,0.10120376]
[1764549717151,0.391,88190.0,88189.0,0.10120376]
[1764549717411,0.396,88190.0,88189.0,0.16372675]
[1764549717615,0.395,88190.0,88189.0,0.17461512]
[1764549718167,0.395,88190.0,88189.0,0.16372675]
[1764549718368,0.395,88190.0,88189.0,0.32798941]
[1764549719103,0.395,88190.0,88189.0,0.32998941]
[1764549719282,0.395,88190.0,88189.0,0.72640077]
[1764549719705,0.395,88190.0,88189.0,0.95617277]
[1764549719936,0.395,88190.0,88189.0,0.9625994]
[1764549720145,0.395,88190.0,88189.0,1.17679877]
[1764549720346,0.395,88190.0,88189.0,1.03909377]
[1764549720551,0.3974713,88190.0,88189.0,1.18950277]
[1764549720875,0.3974713,88190.0,88189.0,1.30151677]
[1764549721170,0.10605298,88238.0,88189.0,1.30151677]
[1764549721171,1e-08,88210.0,88209.0,5.71346098]
[1764549721395,0.0002,88240.0,88235.0,3.49888941]
[1764549721604,0.0002,88240.0,88235.0,0.723]
[1764549721605,0.39021842,88236.0,88235.0,0.723]
[1764549721748,0.39021842,88236.0,88234.0,0.00736]
[1764549721749,0.39021842,88236.0,88234.0,0.323]
[1764549721951,0.39021842,88236.0,88229.0,0.323]
[1764549722152,0.01133337,88235.0,88229.0,0.323]
[1764549722341,0.01133401,88230.0,88225.0,0.70901426]
[1764549722543,0.02833535,88229.0,88225.0,0.70901426]
[1764549722741,0.01133504,88222.0,88214.0,0.323]
[1764549722945,0.4,88222.0,88220.0,0.323]
[1764549723556,0.4,88222.0,88221.0,0.54970339]
[1764549724359,0.4,88222.0,88221.0,0.323]
[1764549724755,0.4,88222.0,88205.0,0.01133722]
[1764549724756,0.01133555,88218.0,88205.0,0.01133722]
[1764549724964,0.23806059,88213.0,88210.0,0.70901426]
[1764549725175,0.01133645,88211.0,88203.0,0.8215555]
[1764549725372,0.02834145,88210.0,88203.0,0.81021802]
[1764549725574,0.39,88210.0,88208.0,0.22673623]
[1764549725773,0.39,88210.0,88209.0,0.323]
[1764549727276,0.39,88210.0,88209.0,0.33388837]
[1764549727503,0.00021842,88236.0,88235.0,0.22666742]
[1764549727725,0.00021842,88236.0,88224.0,0.01133478]
[1764549727726,0.22668604,88228.0,88211.0,0.323]
[1764549727902,0.23802929,88225.0,88211.0,0.323]
[1764549728118,0.02833696,88224.0,88212.0,0.10120376]
[1764549728318,0.42531696,88224.0,88212.0,0.10120376]
[1764549728520,0.02833728,88223.0,88213.0,0.01133619]
[1764549728738,0.42833728,88223.0,88218.0,0.22670954]
[1764549728959,0.0283376,88222.0,88220.0,0.23804041]
[1764549729317,0.0283376,88222.0,88213.0,0.01133619]
[1764549729318,0.3883376,88222.0,88219.0,0.01133542]
[1764549729591,0.02833792,88221.0,88220.0,0.22670596]
[1764549729749,0.41833792,88221.0,88220.0,0.22670596]
[1764549729949,0.39,88221.0,88220.0,0.22670596]
[1764549730674,0.39,88221.0,88170.0,0.21999998]
[1764549730675,0.01133555,88218.0,88170.0,0.21999998]
[1764549730873,0.01133555,88218.0,88208.0,0.70901426]
[1764549730874,0.01089519,88216.0,88208.0,0.70901426]
[1764549731225,0.01089519,88216.0,88212.0,0.01133632]
[1764549731226,0.02833985,88215.0,88212.0,0.01133632]
[1764549731432,0.01089519,88223.0,88218.0,0.01133555]
[1764549731554,0.0283376,88222.0,88220.0,0.22670596]
[1764549731759,0.34,88222.0,88218.0,0.01133555]
[1764549731955,0.01133542,88219.0,88212.0,0.70901426]
[1764549732336,0.01133594,88215.0,88212.0,0.70901426]
[1764549732634,0.01195398,88210.0,88201.0,0.01133773]
[1764549732822,0.04698,88193.0,88190.0,0.70901426]
[1764549732979,0.04698,88193.0,88175.0,0.60120376]
[1764549732980,0.01133928,88189.0,88183.0,0.70901426]
[1764549733159,0.33,88189.0,88185.0,0.22679285]
[1764549733359,0.33,88189.0,88188.0,0.56067659]
[1764549734118,0.33,88189.0,88188.0,0.55018311]
[1764549734467,0.33,88189.0,88188.0,0.00039489]
[1764549734662,0.42472,88189.0,88188.0,0.00039489]
[1764549734861,0.43561519,88189.0,88188.0,0.00039489]
[1764549735072,0.49136,88189.0,88188.0,0.00039489]
[1764549735313,0.49136,88189.0,88188.0,0.00139489]
[1764549735528,0.43561519,88189.0,88188.0,0.00139489]
[1764549735677,0.43561519,88189.0,88160.0,0.70901426]
[1764549735678,0.01134249,88164.0,88160.0,0.70901426]
[1764549735892,0.01134249,88164.0,88150.0,0.01134429]
[1764549735893,0.01134249,88164.0,88150.0,0.70901426]
[1764549735894,0.01089519,88152.0,88150.0,0.70901426]
[1764549736117,0.34089519,88152.0,88150.0,0.00011849]
[1764549736330,0.34089519,88152.0,88151.0,0.10120376]
[1764549736331,0.33,88152.0,88151.0,0.10120376]
[1764549736551,0.33,88152.0,88150.0,0.00011849]
[1764549736738,0.33,88152.0,88151.0,0.10120376]
[1764549737388,0.333,88152.0,88151.0,0.42420376]
[1764549737648,0.333,88152.0,88151.0,0.323]
[1764549737844,0.333,88152.0,88150.0,0.22700309]
[1764549738144,0.333,88152.0,88151.0,0.42420376]
[1764549738443,0.333,88152.0,88151.0,0.48812675]
[1764549738618,0.005,88189.0,88188.0,0.22678822]
[1764549738788,0.415,88189.0,88188.0,0.22678822]
[1764549738992,0.415,88189.0,88188.0,0.54978822]
[1764549739430,0.395,88189.0,88188.0,0.61231121]
[1764549739630,0.315,88189.0,88188.0,0.62319958]
[1764549739830,0.31539465,88189.0,88188.0,0.62319958]
[1764549740041,0.31539465,88189.0,88188.0,0.56067659]
[1764549740269,0.31539465,88189.0,88188.0,0.55178822]
[1764549740470,0.31539465,88189.0,88188.0,0.325]
[1764549740884,0.31539465,88189.0,88188.0,0.002]
[1764549740885,0.41127465,88189.0,88188.0,0.002]
[1764549741030,0.42216984,88189.0,88188.0,0.002]
[1764549741474,0.22685768,88161.0,88160.0,0.70901426]
[1764549741643,0.37,88161.0,88160.0,0.01134301]
[1764549741844,0.37,88161.0,88160.0,0.02223138]
[1764549742180,0.37,88161.0,88160.0,0.01134301]
[1764549742635,0.37,88161.0,88160.0,0.00011849]
[1764549742974,0.37,88161.0,88160.0,0.00111849]
[1764549743375,0.37,88161.0,88160.0,0.00011849]
[1764549743599,0.37,88161.0,88160.0,0.00211849]
[1764549743798,0.37,88161.0,88160.0,0.01300686]
[1764549744000,0.37,88161.0,88160.0,0.00011849]
[1764549744693,0.281,88161.0,88160.0,0.07552985]
[1764549744876,0.28,88161.0,88160.0,0.07552985]
[1764549745483,0.005,88189.0,88188.0,0.22678822]
[1764549745716,0.375,88189.0,88188.0,0.32799198]
[1764549745869,0.375,88189.0,88188.0,0.10120376]
[1764549746531,0.375,88189.0,88175.0,0.23816148]
[1764549746532,0.01133979,88185.0,88175.0,0.23816148]
[1764549746754,0.01133979,88185.0,88183.0,0.22680016]
[1764549746755,0.38,88185.0,88183.0,0.22680016]
[1764549747162,0.38,88185.0,88183.0,0.23768853]
[1764549747566,0.38,88185.0,88183.0,0.22680016]
[1764549747803,0.38,88185.0,88181.0,0.01088837]
[1764549747988,0.38,88185.0,88180.0,0.323]
[1764549747989,0.02834981,88184.0,88180.0,0.323]
[1764549748230,0.44968973,88184.0,88180.0,0.323]
[1764549748443,0.44968973,88184.0,88173.0,0.01134134]
[1764549748444,0.01134056,88179.0,88170.0,0.70901426]
[1764549748642,0.02835174,88178.0,88175.0,0.01134108]
[1764549748954,0.01134082,88177.0,88172.0,0.11254522]
[1764549749153,0.01134108,88175.0,88172.0,0.10120376]
[1764549749304,0.01134108,88175.0,88171.0,0.323]
[1764549749305,0.01134121,88174.0,88171.0,0.323]
[1764549749612,0.01134121,88174.0,88171.0,0.01134159]
[1764549749613,0.38,88174.0,88171.0,0.01134159]
[1764549749818,0.22683195,88171.0,88170.0,0.70901426]
[1764549750021,0.01134262,88163.0,88160.0,0.70901426]
[1764549750230,0.41,88163.0,88162.0,0.2268551]
[1764549750430,0.41,88163.0,88160.0,0.01134301]
[1764549750636,0.41,88163.0,88160.0,0.23820272]
[1764549750830,0.41,88163.0,88145.0,0.22689885]
[1764549750831,0.01134352,88156.0,88138.0,0.01134584]
[1764549751038,0.01134442,88149.0,88146.0,0.70901426]
[1764549751278,0.01134532,88142.0,88132.0,0.23827778]
[1764549751477,0.01134532,88142.0,88119.0,0.002]
[1764549751481,0.23828003,88132.0,88130.0,0.70901426]
[1764549751701,0.01134713,88128.0,88122.0,0.71159255]
[1764549751826,0.34,88128.0,88126.0,0.10120376]
[1764549752029,0.33339039,88127.0,88126.0,0.00011849]
[1764549752228,0.67339039,88127.0,88126.0,0.00011849]
[1764549752869,0.67339039,88127.0,88122.0,0.00257829]
[1764549752870,0.2269555,88123.0,88122.0,0.00257829]
[1764549753075,0.58919846,88123.0,88122.0,0.00011852]
[1764549753282,0.22703643,88092.0,88090.0,0.70901426]
[1764549753481,0.22703643,88092.0,88082.0,0.22706012]
[1764549753482,0.01089519,88091.0,88086.0,0.22704835]
[1764549753682,0.40089519,88091.0,88089.0,0.2270431]
[1764549753912,0.39,88091.0,88088.0,0.10120376]
[1764549754069,0.39,88091.0,88086.0,0.00011865]
[1764549754270,0.39,88091.0,88087.0,0.23840066]
[1764549754579,0.39,88091.0,88089.0,0.22704135]
[1764549754797,0.391,88091.0,88089.0,0.22704135]
[1764549754996,0.39,88091.0,88089.0,0.22704135]
[1764549755114,0.392,88091.0,88089.0,0.22704135]
[1764549755516,0.39,88091.0,88089.0,0.22704135]
[1764549755717,0.39,88091.0,88089.0,0.22704181]
[1764549755953,0.39,88091.0,88086.0,0.22716938]
[1764549756154,0.39,88091.0,88088.0,0.23839712]
[1764549756424,0.39,88091.0,88088.0,0.33960088]
[1764549756624,0.39,88091.0,88088.0,0.2403065]
[1764549756823,0.392,88091.0,88088.0,0.2403065]
[1764549757039,0.39,88091.0,88088.0,0.2403065]
[1764549757458,0.392,88091.0,88088.0,0.2403065]
[1764549758270,0.392,88091.0,88088.0,0.2203065]
[1764549758472,0.392,88091.0,88088.0,0.00190938]
[1764549758473,0.09555,88090.0,88088.0,0.00190938]
[1764549758671,0.09555,88090.0,88086.0,0.00011865]
[1764549758672,0.23839525,88089.0,88086.0,0.00011865]